[Event "Titled Tuesday Blitz June 20 Late 2023"]
[White "Itkis, Boris"]
[Black "MKlose11"]
[WhiteFideId "1209167"]
[WhiteElo "2219"]
[BlackElo "2575"]
[Result "0-1"]
[Round "7"]
[TimeControl "180+2"]
[Date "2023.06.20"]
[WhiteClock "0:00:16"]
[BlackClock "0:00:35"]
[Board "99"]

1. c4 {[%clk 0:02:46]}  Nf6 {[%clk 0:02:59]} 2. Nf3 {[%clk 0:02:46]}  c5 {[%clk 0:03:00]} 3. Nc3 {[%clk 0:02:45]}  Nc6 {[%clk 0:03:00]} 4. e3 {[%clk 0:02:42]}  g6 {[%clk 0:02:58]} 5. d4 {[%clk 0:02:38]}  cxd4 {[%clk 0:02:58]} 6. exd4 {[%clk 0:02:39]}  d5 {[%clk 0:02:58]} 7. cxd5 {[%clk 0:02:40]}  Nxd5 {[%clk 0:02:58]} 8. Qb3 {[%clk 0:02:41]}  e6 {[%clk 0:02:53]} 9. Nxd5 {[%clk 0:02:40]}  Qxd5 {[%clk 0:02:51]} 10. Qxd5 {[%clk 0:02:38]}  exd5 {[%clk 0:02:52]} 11. Bb5 {[%clk 0:02:39]}  Bd7 {[%clk 0:02:46]} 12. O-O {[%clk 0:02:38]}  f6 {[%clk 0:02:28]} 13. Bf4 {[%clk 0:02:30]}  a6 {[%clk 0:02:27]} 14. Ba4 {[%clk 0:02:29]}  Kf7 {[%clk 0:02:26]} 15. Bb3 {[%clk 0:02:27]}  Be6 {[%clk 0:02:25]} 16. Rfe1 {[%clk 0:02:26]}  Bb4 {[%clk 0:02:21]} 17. Re2 {[%clk 0:02:25]}  Rhe8 {[%clk 0:02:11]} 18. a3 {[%clk 0:02:25]}  Ba5 {[%clk 0:02:08]} 19. Kf1 {[%clk 0:02:23]}  Rad8 {[%clk 0:02:03]} 20. Rd1 {[%clk 0:02:16]}  Bb6 {[%clk 0:02:01]} 21. h3 {[%clk 0:02:06]}  Ba7 {[%clk 0:02:01]} 22. g4 {[%clk 0:02:05]}  Na5 {[%clk 0:02:01]} 23. Ba2 {[%clk 0:02:00]}  Nc4 {[%clk 0:01:59]} 24. Rde1 {[%clk 0:01:54]}  Bd7 {[%clk 0:01:53]} 25. Nd2 {[%clk 0:01:49]}  b5 {[%clk 0:01:47]} 26. Rxe8 {[%clk 0:01:45]}  Bxe8 {[%clk 0:01:37]} 27. Nb3 {[%clk 0:01:24]}  Nxb2 {[%clk 0:01:33]} 28. Nc5 {[%clk 0:01:23]}  Bxc5 {[%clk 0:01:27]} 29. dxc5 {[%clk 0:01:24]}  Nd3 {[%clk 0:01:27]} 30. Bd6 {[%clk 0:01:12]}  Nxe1 {[%clk 0:01:24]} 31. Bxd5+ {[%clk 0:01:13]}  Kg7 {[%clk 0:01:22]} 32. Kxe1 {[%clk 0:01:14]}  Bf7 {[%clk 0:01:14]} 33. Bb7 {[%clk 0:01:14]}  a5 {[%clk 0:01:08]} 34. Kf1 {[%clk 0:01:10]}  b4 {[%clk 0:01:07]} 35. axb4 {[%clk 0:01:10]}  axb4 {[%clk 0:01:08]} 36. c6 {[%clk 0:00:52]}  Rxd6 {[%clk 0:01:06]} 37. c7 {[%clk 0:00:53]}  Rd1+ {[%clk 0:01:03]} 38. Ke2 {[%clk 0:00:53]}  Rc1 {[%clk 0:01:04]} 39. c8=Q {[%clk 0:00:53]}  Rxc8 {[%clk 0:01:04]} 40. Bxc8 {[%clk 0:00:54]}  g5 {[%clk 0:01:00]} 41. Kd3 {[%clk 0:00:49]}  Kf8 {[%clk 0:00:57]} 42. Bf5 {[%clk 0:00:48]}  h6 {[%clk 0:00:46]} 43. Kd4 {[%clk 0:00:47]}  Ke7 {[%clk 0:00:46]} 44. Bb1 {[%clk 0:00:40]}  Kd6 {[%clk 0:00:45]} 45. Bd3 {[%clk 0:00:32]}  Bd5 {[%clk 0:00:43]} 46. Bf5 {[%clk 0:00:31]}  b3 {[%clk 0:00:38]} 47. Bb1 {[%clk 0:00:21]}  Bg2 {[%clk 0:00:35]} 48. Bf5 {[%clk 0:00:17]}  Bxh3 {[%clk 0:00:35]} 49. Kc3 {[%clk 0:00:18]}  Ke5 {[%clk 0:00:34]} 50. Kxb3 {[%clk 0:00:19]}  Kf4 {[%clk 0:00:34]} 51. Kc4 {[%clk 0:00:16]}  Bxg4 {[%clk 0:00:35]} 0-1


[Site "https://www.chess.com"]

[Event "Titled Tuesday Blitz June 20 Late 2023"]
[White "Seletsky, Grigory"]
[Black "Hajiyev, Kanan"]
[WhiteFideId "14112191"]
[BlackFideId "13404148"]
[WhiteElo "2491"]
[BlackElo "2115"]
[Result "1-0"]
[Round "7"]
[TimeControl "180+2"]
[Date "2023.06.20"]
[WhiteClock "0:00:13"]
[BlackClock "0:00:50"]
[Board "100"]

1. b3 {[%clk 0:02:59]}  b5 {[%clk 0:02:58]} 2. Bb2 {[%clk 0:02:59]}  Bb7 {[%clk 0:02:58]} 3. Nf3 {[%clk 0:02:58]}  Nf6 {[%clk 0:02:59]} 4. e3 {[%clk 0:02:58]}  c5 {[%clk 0:02:59]} 5. Bxb5 {[%clk 0:02:57]}  e6 {[%clk 0:03:00]} 6. Be2 {[%clk 0:02:55]}  d5 {[%clk 0:03:00]} 7. O-O {[%clk 0:02:56]}  Bd6 {[%clk 0:03:01]} 8. Ne5 {[%clk 0:02:56]}  Qc7 {[%clk 0:03:01]} 9. Bb5+ {[%clk 0:02:53]}  Nbd7 {[%clk 0:02:58]} 10. f4 {[%clk 0:02:45]}  O-O {[%clk 0:02:58]} 11. Nxd7 {[%clk 0:02:44]}  Nxd7 {[%clk 0:02:59]} 12. Bxd7 {[%clk 0:02:20]}  Qxd7 {[%clk 0:02:59]} 13. d3 {[%clk 0:02:16]}  f5 {[%clk 0:02:49]} 14. Nd2 {[%clk 0:02:15]}  a5 {[%clk 0:02:49]} 15. Nf3 {[%clk 0:02:11]}  a4 {[%clk 0:02:46]} 16. Ne5 {[%clk 0:02:10]}  Qc7 {[%clk 0:02:46]} 17. c4 {[%clk 0:01:50]}  a3 {[%clk 0:02:34]} 18. Bc3 {[%clk 0:01:49]}  dxc4 {[%clk 0:02:27]} 19. bxc4 {[%clk 0:01:44]}  Rfd8 {[%clk 0:02:23]} 20. Rb1 {[%clk 0:01:42]}  Ra7 {[%clk 0:02:09]} 21. Qe2 {[%clk 0:01:33]}  Ba8 {[%clk 0:02:08]} 22. Rb3 {[%clk 0:01:27]}  Bxe5 {[%clk 0:01:47]} 23. Bxe5 {[%clk 0:01:26]}  Qc6 {[%clk 0:01:48]} 24. Rf3 {[%clk 0:01:21]}  h6 {[%clk 0:01:45]} 25. Rg3 {[%clk 0:01:21]}  Kh7 {[%clk 0:01:40]} 26. h3 {[%clk 0:00:48]}  Qa4 {[%clk 0:01:23]} 27. Qh5 {[%clk 0:00:43]}  Qe8 {[%clk 0:01:21]} 28. Qe2 {[%clk 0:00:39]}  Qa4 {[%clk 0:01:20]} 29. Qh5 {[%clk 0:00:35]}  Qe8 {[%clk 0:01:20]} 30. Qd1 {[%clk 0:00:35]}  Bc6 {[%clk 0:01:18]} 31. Qc1 {[%clk 0:00:31]}  Rad7 {[%clk 0:01:08]} 32. Qxa3 {[%clk 0:00:26]}  Ra8 {[%clk 0:01:08]} 33. Qxc5 {[%clk 0:00:23]}  Rda7 {[%clk 0:01:03]} 34. Rb6 {[%clk 0:00:18]}  Ra6 {[%clk 0:00:55]} 35. Rxa6 {[%clk 0:00:15]}  Rxa6 {[%clk 0:00:56]} 36. a3 {[%clk 0:00:15]}  Ba8 {[%clk 0:00:54]} 37. Rxg7+ {[%clk 0:00:14]}  Kh8 {[%clk 0:00:50]} 38. Re7+ {[%clk 0:00:13]} 1-0


[Site "https://www.chess.com"]

[Event "Titled Tuesday Blitz June 20 Late 2023"]
[White "Omariev, Maksim"]
[Black "Bruedigam, Martin"]
[WhiteFideId "4193423"]
[BlackFideId "24608033"]
[WhiteElo "2410"]
[BlackElo "2331"]
[Result "1-0"]
[Round "7"]
[TimeControl "180+2"]
[Date "2023.06.20"]
[WhiteClock "0:00:05"]
[BlackClock "0:00:00"]
[Board "102"]

1. e4 {[%clk 0:02:53]}  e5 {[%clk 0:02:59]} 2. Nf3 {[%clk 0:02:53]}  Nc6 {[%clk 0:02:59]} 3. Bb5 {[%clk 0:02:53]}  a6 {[%clk 0:02:58]} 4. Ba4 {[%clk 0:02:53]}  Nf6 {[%clk 0:02:58]} 5. O-O {[%clk 0:02:51]}  Be7 {[%clk 0:02:58]} 6. Re1 {[%clk 0:02:51]}  b5 {[%clk 0:02:58]} 7. Bb3 {[%clk 0:02:51]}  d6 {[%clk 0:02:58]} 8. c3 {[%clk 0:02:50]}  O-O {[%clk 0:02:58]} 9. h3 {[%clk 0:02:50]}  Na5 {[%clk 0:02:58]} 10. Bc2 {[%clk 0:02:51]}  c5 {[%clk 0:02:58]} 11. d4 {[%clk 0:02:51]}  Qc7 {[%clk 0:02:59]} 12. Nbd2 {[%clk 0:02:51]}  Bd7 {[%clk 0:02:59]} 13. Nf1 {[%clk 0:02:51]}  Nc6 {[%clk 0:02:58]} 14. Ng3 {[%clk 0:02:24]}  cxd4 {[%clk 0:02:56]} 15. cxd4 {[%clk 0:02:24]}  Nxd4 {[%clk 0:02:57]} 16. Nxd4 {[%clk 0:02:23]}  exd4 {[%clk 0:02:57]} 17. Bf4 {[%clk 0:02:16]}  Be6 {[%clk 0:02:52]} 18. Rc1 {[%clk 0:02:13]}  Qa7 {[%clk 0:02:50]} 19. Bb1 {[%clk 0:02:02]}  Nd7 {[%clk 0:02:48]} 20. Ne2 {[%clk 0:01:56]}  Rac8 {[%clk 0:02:21]} 21. Nxd4 {[%clk 0:01:37]}  Rxc1 {[%clk 0:02:20]} 22. Bxc1 {[%clk 0:01:38]}  Ne5 {[%clk 0:02:09]} 23. Bf4 {[%clk 0:01:21]}  Bd7 {[%clk 0:02:07]} 24. b3 {[%clk 0:01:15]}  Rc8 {[%clk 0:02:02]} 25. Be3 {[%clk 0:01:03]}  Qc7 {[%clk 0:02:00]} 26. f4 {[%clk 0:01:02]}  Nc6 {[%clk 0:01:53]} 27. Qh5 {[%clk 0:00:48]}  Nxd4 {[%clk 0:01:48]} 28. Bxd4 {[%clk 0:00:49]}  Qd8 {[%clk 0:01:38]} 29. Rd1 {[%clk 0:00:31]}  g6 {[%clk 0:01:25]} 30. Qf3 {[%clk 0:00:28]}  Bc6 {[%clk 0:01:24]} 31. Qd3 {[%clk 0:00:28]}  Bb7 {[%clk 0:01:22]} 32. Kh1 {[%clk 0:00:27]}  Bf6 {[%clk 0:01:12]} 33. Bg1 {[%clk 0:00:20]}  Kg7 {[%clk 0:00:50]} 34. Kh2 {[%clk 0:00:19]}  Qe8 {[%clk 0:00:33]} 35. Bd4 {[%clk 0:00:06]}  Bxd4 {[%clk 0:00:16]} 36. Qxd4+ {[%clk 0:00:07]}  Kg8 {[%clk 0:00:16]} 37. Qxd6 {[%clk 0:00:05]}  Bxe4 {[%clk 0:00:17]} 38. Re1 {[%clk 0:00:05]}  Qc6 {[%clk 0:00:17]} 39. Qe5 {[%clk 0:00:02]}  Bxb1 {[%clk 0:00:15]} 40. Rxb1 {[%clk 0:00:01]}  Re8 {[%clk 0:00:16]} 41. Qd4 {[%clk 0:00:01]}  Qc2 {[%clk 0:00:15]} 42. Rb2 {[%clk 0:00:01]}  Qc1 {[%clk 0:00:13]} 43. Rd2 {[%clk 0:00:01]}  h5 {[%clk 0:00:11]} 44. f5 {[%clk 0:00:02]}  Qc7+ {[%clk 0:00:10]} 45. Kg1 {[%clk 0:00:01]}  Qc1+ {[%clk 0:00:08]} 46. Kf2 {[%clk 0:00:01]}  Qe1+ {[%clk 0:00:06]} 47. Kf3 {[%clk 0:00:01]}  Qf1+ {[%clk 0:00:07]} 48. Rf2 {[%clk 0:00:01]}  Qb1 {[%clk 0:00:07]} 49. fxg6 {[%clk 0:00:01]}  fxg6 {[%clk 0:00:07]} 50. Kg3 {[%clk 0:00:01]}  Qe4 {[%clk 0:00:05]} 51. Qxe4 {[%clk 0:00:01]}  Rxe4 {[%clk 0:00:05]} 52. Rf6 {[%clk 0:00:02]}  Kg7 {[%clk 0:00:05]} 53. Rxa6 {[%clk 0:00:02]}  Re3+ {[%clk 0:00:04]} 54. Kf4 {[%clk 0:00:02]}  Re2 {[%clk 0:00:04]} 55. Kf3 {[%clk 0:00:02]}  Rb2 {[%clk 0:00:04]} 56. g4 {[%clk 0:00:02]}  h4 {[%clk 0:00:04]} 57. g5 {[%clk 0:00:02]}  Kf7 {[%clk 0:00:01]} 58. Rf6+ {[%clk 0:00:02]}  Kg7 {[%clk 0:00:01]} 59. Ra6 {[%clk 0:00:02]}  b4 {[%clk 0:00:02]} 60. Kg4 {[%clk 0:00:02]}  Rg2+ {[%clk 0:00:01]} 61. Kxh4 {[%clk 0:00:02]}  Kf7 {[%clk 0:00:02]} 62. Rf6+ {[%clk 0:00:01]}  Kg7 {[%clk 0:00:02]} 63. Ra6 {[%clk 0:00:02]}  Kf7 {[%clk 0:00:02]} 64. Ra4 {[%clk 0:00:03]}  Kg7 {[%clk 0:00:02]} 65. Rxb4 {[%clk 0:00:03]}  Rxa2 {[%clk 0:00:03]} 66. Rb7+ {[%clk 0:00:04]}  Kg8 {[%clk 0:00:03]} 67. b4 {[%clk 0:00:04]}  Rb2 {[%clk 0:00:02]} 68. Kg4 {[%clk 0:00:05]}  Rb3 {[%clk 0:00:03]} 69. h4 {[%clk 0:00:05]}  Rb1 {[%clk 0:00:03]} 70. Kf4 {[%clk 0:00:05]}  Rh1 {[%clk 0:00:02]} 71. Ke5 {[%clk 0:00:05]}  Rxh4 {[%clk 0:00:02]} 72. Kf6 {[%clk 0:00:06]}  Rd4 {[%clk 0:00:02]} 73. Kxg6 {[%clk 0:00:06]}  Rd6+ {[%clk 0:00:02]} 74. Kh5 {[%clk 0:00:07]}  Rc6 {[%clk 0:00:01]} 75. b5 {[%clk 0:00:07]}  Rd6 {[%clk 0:00:02]} 76. b6 {[%clk 0:00:07]}  Rc6 {[%clk 0:00:02]} 77. Kg4 {[%clk 0:00:07]}  Rd6 {[%clk 0:00:01]} 78. Kf5 {[%clk 0:00:07]}  Rc6 {[%clk 0:00:02]} 79. Ke5 {[%clk 0:00:07]}  Rg6 {[%clk 0:00:02]} 80. Kf5 {[%clk 0:00:06]}  Rc6 {[%clk 0:00:02]} 81. Kg4 {[%clk 0:00:03]}  Rc4+ {[%clk 0:00:02]} 82. Kh5 {[%clk 0:00:03]}  Rc6 {[%clk 0:00:02]} 83. g6 {[%clk 0:00:03]}  Rc1 {[%clk 0:00:02]} 84. Rb8+ {[%clk 0:00:03]}  Kg7 {[%clk 0:00:02]} 85. Rb7+ {[%clk 0:00:03]}  Kg8 {[%clk 0:00:02]} 86. g7 {[%clk 0:00:04]}  Kh7 {[%clk 0:00:01]} 87. Kg5 {[%clk 0:00:04]}  Rc6 {[%clk 0:00:01]} 88. Kf5 {[%clk 0:00:04]}  Rc1 {[%clk 0:00:01]} 89. Ke5 {[%clk 0:00:04]}  Rf1 {[%clk 0:00:02]} 90. Kd5 {[%clk 0:00:04]}  Rd1+ {[%clk 0:00:02]} 91. Kc6 {[%clk 0:00:04]}  Rc1+ {[%clk 0:00:02]} 92. Kb5 {[%clk 0:00:05]}  Rb1+ {[%clk 0:00:02]} 93. Kc6 {[%clk 0:00:05]}  Rc1+ {[%clk 0:00:02]} 94. Kd7 {[%clk 0:00:05]}  Rb1 {[%clk 0:00:01]} 95. Kc8 {[%clk 0:00:05]}  Kg8 {[%clk 0:00:01]} 96. Kb8 {[%clk 0:00:05]}  Rb2 {[%clk 0:00:01]} 97. Ka8 {[%clk 0:00:05]}  Ra2+ {[%clk 0:00:01]} 98. Ra7 {[%clk 0:00:05]}  Rb2 {[%clk 0:00:00]} 99. b7 {[%clk 0:00:05]} 1-0


[Site "https://www.chess.com"]

[Event "Titled Tuesday Blitz June 20 Late 2023"]
[White "Santos Flores, Alberto"]
[Black "Vaglio Munoz, Jaime"]
[WhiteFideId "3601234"]
[BlackFideId "6500145"]
[WhiteElo "2235"]
[BlackElo "2199"]
[Result "1-0"]
[Round "7"]
[TimeControl "180+2"]
[Date "2023.06.20"]
[WhiteClock "0:00:08"]
[BlackClock "0:00:00"]
[Board "106"]

1. e4 {[%clk 0:03:00]}  c5 {[%clk 0:02:54]} 2. Nf3 {[%clk 0:03:00]}  Qa5 {[%clk 0:02:53]} 3. Nc3 {[%clk 0:02:59]}  a6 {[%clk 0:02:52]} 4. d4 {[%clk 0:02:57]}  b5 {[%clk 0:02:51]} 5. dxc5 {[%clk 0:02:47]}  e6 {[%clk 0:02:50]} 6. Be3 {[%clk 0:02:42]}  b4 {[%clk 0:02:51]} 7. Nb1 {[%clk 0:02:40]}  Bxc5 {[%clk 0:02:50]} 8. Bxc5 {[%clk 0:02:40]}  Qxc5 {[%clk 0:02:48]} 9. Bd3 {[%clk 0:02:40]}  Bb7 {[%clk 0:02:46]} 10. O-O {[%clk 0:02:33]}  Nf6 {[%clk 0:02:45]} 11. Nbd2 {[%clk 0:02:30]}  Nc6 {[%clk 0:02:30]} 12. Qe2 {[%clk 0:02:30]}  Nd4 {[%clk 0:02:25]} 13. Nxd4 {[%clk 0:02:30]}  Qxd4 {[%clk 0:02:26]} 14. b3 {[%clk 0:02:21]}  d6 {[%clk 0:02:17]} 15. a3 {[%clk 0:02:17]}  O-O {[%clk 0:02:10]} 16. axb4 {[%clk 0:02:16]}  Qxb4 {[%clk 0:02:11]} 17. f3 {[%clk 0:02:09]}  a5 {[%clk 0:02:10]} 18. Ra4 {[%clk 0:01:51]}  Qb6+ {[%clk 0:02:08]} 19. Qf2 {[%clk 0:01:50]}  Qc7 {[%clk 0:01:54]} 20. Rfa1 {[%clk 0:01:43]}  h6 {[%clk 0:01:50]} 21. Nc4 {[%clk 0:01:40]}  d5 {[%clk 0:01:47]} 22. exd5 {[%clk 0:01:40]}  Nxd5 {[%clk 0:01:45]} 23. Rxa5 {[%clk 0:01:40]}  Rxa5 {[%clk 0:01:33]} 24. Rxa5 {[%clk 0:01:39]}  Qf4 {[%clk 0:01:27]} 25. Ra1 {[%clk 0:01:20]}  Qf6 {[%clk 0:01:23]} 26. Ra7 {[%clk 0:01:12]}  Bc6 {[%clk 0:01:17]} 27. Na5 {[%clk 0:00:59]}  Ba8 {[%clk 0:01:15]} 28. Nc4 {[%clk 0:00:54]}  Nf4 {[%clk 0:01:13]} 29. Bf1 {[%clk 0:00:44]}  Bd5 {[%clk 0:01:12]} 30. Ne3 {[%clk 0:00:43]}  g5 {[%clk 0:01:05]} 31. g3 {[%clk 0:00:41]}  Ng6 {[%clk 0:00:57]} 32. Nxd5 {[%clk 0:00:41]}  exd5 {[%clk 0:00:57]} 33. Ra6 {[%clk 0:00:37]}  Qc3 {[%clk 0:00:49]} 34. Bd3 {[%clk 0:00:20]}  Ne5 {[%clk 0:00:47]} 35. Rxh6 {[%clk 0:00:21]}  Ra8 {[%clk 0:00:43]} 36. Qe3 {[%clk 0:00:15]}  Ng6 {[%clk 0:00:25]} 37. Qxg5 {[%clk 0:00:13]}  Qe1+ {[%clk 0:00:17]} 38. Kg2 {[%clk 0:00:13]}  Ra1 {[%clk 0:00:17]} 39. Rxg6+ {[%clk 0:00:10]}  fxg6 {[%clk 0:00:16]} 40. Qxg6+ {[%clk 0:00:11]}  Kf8 {[%clk 0:00:16]} 41. Qf5+ {[%clk 0:00:11]}  Ke7 {[%clk 0:00:16]} 42. Qg5+ {[%clk 0:00:10]}  Kd6 {[%clk 0:00:16]} 43. Qf6+ {[%clk 0:00:10]}  Kc5 {[%clk 0:00:16]} 44. Qf8+ {[%clk 0:00:11]}  Kc6 {[%clk 0:00:15]} 45. Qc8+ {[%clk 0:00:10]}  Kd6 {[%clk 0:00:15]} 46. Qb8+ {[%clk 0:00:09]}  Kc6 {[%clk 0:00:14]} 47. Bb5+ {[%clk 0:00:09]}  Kc5 {[%clk 0:00:14]} 48. Kh3 {[%clk 0:00:08]}  Qe6+ {[%clk 0:00:13]} 49. Kg2 {[%clk 0:00:07]}  Qb6 {[%clk 0:00:10]} 50. Qxb6+ {[%clk 0:00:07]}  Kxb6 {[%clk 0:00:11]} 51. Bd3 {[%clk 0:00:07]}  Kc5 {[%clk 0:00:11]} 52. g4 {[%clk 0:00:08]}  Kd4 {[%clk 0:00:11]} 53. Kg3 {[%clk 0:00:08]}  Ke5 {[%clk 0:00:11]} 54. f4+ {[%clk 0:00:08]}  Kf6 {[%clk 0:00:11]} 55. h4 {[%clk 0:00:09]}  Rg1+ {[%clk 0:00:09]} 56. Kf3 {[%clk 0:00:09]}  Rh1 {[%clk 0:00:09]} 57. g5+ {[%clk 0:00:09]}  Ke6 {[%clk 0:00:09]} 58. f5+ {[%clk 0:00:08]}  Ke5 {[%clk 0:00:09]} 59. Kg4 {[%clk 0:00:07]}  Rh2 {[%clk 0:00:06]} 60. f6 {[%clk 0:00:07]}  Rg2+ {[%clk 0:00:05]} 61. Kh5 {[%clk 0:00:07]}  d4 {[%clk 0:00:05]} 62. Kg6 {[%clk 0:00:07]}  Rg1 {[%clk 0:00:03]} 63. h5 {[%clk 0:00:07]}  Ra1 {[%clk 0:00:02]} 64. h6 {[%clk 0:00:08]}  Ra8 {[%clk 0:00:01]} 65. h7 {[%clk 0:00:08]}  Ke6 {[%clk 0:00:01]} 66. Kg7 {[%clk 0:00:07]}  Ra7+ {[%clk 0:00:02]} 67. Kg6 {[%clk 0:00:07]}  Ra8 {[%clk 0:00:02]} 68. Bc4+ {[%clk 0:00:07]}  Ke5 {[%clk 0:00:00]} 69. Bg8 {[%clk 0:00:08]} 1-0


[Site "https://www.chess.com"]

[Event "Titled Tuesday Blitz June 20 Late 2023"]
[White "Gomez Barrera, Javiera Belen"]
[Black "Vila Dupla, Aurelio"]
[WhiteFideId "3418723"]
[BlackFideId "2203383"]
[WhiteElo "2119"]
[BlackElo "2009"]
[Result "0-1"]
[Round "7"]
[TimeControl "180+2"]
[Date "2023.06.20"]
[WhiteClock "0:00:00"]
[BlackClock "0:00:05"]
[Board "107"]

1. e4 {[%clk 0:02:55]}  c5 {[%clk 0:02:58]} 2. Nf3 {[%clk 0:02:54]}  d6 {[%clk 0:02:58]} 3. d4 {[%clk 0:02:55]}  cxd4 {[%clk 0:02:57]} 4. Nxd4 {[%clk 0:02:56]}  Nf6 {[%clk 0:02:57]} 5. Nc3 {[%clk 0:02:56]}  g6 {[%clk 0:02:57]} 6. Be3 {[%clk 0:02:56]}  Bg7 {[%clk 0:02:57]} 7. f3 {[%clk 0:02:54]}  O-O {[%clk 0:02:57]} 8. Qd2 {[%clk 0:02:55]}  Nc6 {[%clk 0:02:57]} 9. O-O-O {[%clk 0:02:55]}  d5 {[%clk 0:02:56]} 10. exd5 {[%clk 0:02:54]}  Nxd5 {[%clk 0:02:55]} 11. Nxc6 {[%clk 0:02:55]}  bxc6 {[%clk 0:02:55]} 12. Bd4 {[%clk 0:02:55]}  Nxc3 {[%clk 0:02:54]} 13. Qxc3 {[%clk 0:02:45]}  Bh6+ {[%clk 0:02:54]} 14. Be3 {[%clk 0:02:36]}  Bxe3+ {[%clk 0:02:53]} 15. Qxe3 {[%clk 0:02:37]}  Qb6 {[%clk 0:02:53]} 16. Qxe7 {[%clk 0:02:32]}  Be6 {[%clk 0:02:52]} 17. Qa3 {[%clk 0:02:30]}  Rad8 {[%clk 0:02:51]} 18. Bd3 {[%clk 0:02:26]}  c5 {[%clk 0:02:51]} 19. Be4 {[%clk 0:02:22]}  Rd4 {[%clk 0:02:32]} 20. c3 {[%clk 0:02:13]}  Rdd8 {[%clk 0:02:24]} 21. Rxd8 {[%clk 0:02:07]}  Rxd8 {[%clk 0:02:22]} 22. b3 {[%clk 0:02:01]}  Qd6 {[%clk 0:02:17]} 23. Qb2 {[%clk 0:02:00]}  Qf4+ {[%clk 0:02:16]} 24. Kb1 {[%clk 0:01:58]}  Rd2 {[%clk 0:01:49]} 25. Qc1 {[%clk 0:01:58]}  Qd6 {[%clk 0:01:49]} 26. g3 {[%clk 0:01:49]}  a5 {[%clk 0:01:48]} 27. Bc2 {[%clk 0:01:48]}  a4 {[%clk 0:01:44]} 28. Rd1 {[%clk 0:01:48]}  Rxd1 {[%clk 0:01:22]} 29. Qxd1 {[%clk 0:01:49]}  Qb6 {[%clk 0:01:22]} 30. Kb2 {[%clk 0:01:35]}  Qa5 {[%clk 0:01:21]} 31. Qe1 {[%clk 0:01:29]}  a3+ {[%clk 0:01:21]} 32. Kc1 {[%clk 0:01:25]}  Qb5 {[%clk 0:01:14]} 33. h4 {[%clk 0:01:21]}  Bd5 {[%clk 0:00:59]} 34. c4 {[%clk 0:00:55]}  Bxc4 {[%clk 0:00:58]} 35. bxc4 {[%clk 0:00:56]}  Qb2+ {[%clk 0:00:51]} 36. Kd2 {[%clk 0:00:50]}  Qd4+ {[%clk 0:00:47]} 37. Kc1 {[%clk 0:00:43]}  Qb2+ {[%clk 0:00:45]} 38. Kd1 {[%clk 0:00:43]}  Qd4+ {[%clk 0:00:41]} 39. Qd2 {[%clk 0:00:38]}  Qg1+ {[%clk 0:00:34]} 40. Ke2 {[%clk 0:00:31]}  Qxg3 {[%clk 0:00:27]} 41. Qd8+ {[%clk 0:00:18]}  Kg7 {[%clk 0:00:26]} 42. Qg5 {[%clk 0:00:10]}  Qh2+ {[%clk 0:00:24]} 43. Kd3 {[%clk 0:00:10]}  Qd6+ {[%clk 0:00:23]} 44. Qd5 {[%clk 0:00:07]}  Qf4 {[%clk 0:00:20]} 45. Qe4 {[%clk 0:00:05]}  Qd6+ {[%clk 0:00:18]} 46. Kc3 {[%clk 0:00:05]}  Qf6+ {[%clk 0:00:17]} 47. Kd2 {[%clk 0:00:04]}  Qd6+ {[%clk 0:00:15]} 48. Ke3 {[%clk 0:00:02]}  Qh2 {[%clk 0:00:11]} 49. Bd3 {[%clk 0:00:01]}  Qg1+ {[%clk 0:00:11]} 50. Kf4 {[%clk 0:00:02]}  Qh2+ {[%clk 0:00:11]} 51. Ke3 {[%clk 0:00:02]}  Qg1+ {[%clk 0:00:10]} 52. Kd2 {[%clk 0:00:03]}  Qa1 {[%clk 0:00:09]} 53. Ke3 {[%clk 0:00:02]}  Qc1+ {[%clk 0:00:08]} 54. Kf2 {[%clk 0:00:02]}  Qd2+ {[%clk 0:00:07]} 55. Kg3 {[%clk 0:00:01]}  Qxa2 {[%clk 0:00:07]} 56. Qe5+ {[%clk 0:00:01]}  Kh6 {[%clk 0:00:06]} 57. Qxc5 {[%clk 0:00:01]}  Qb2 {[%clk 0:00:05]} 58. Qg5+ {[%clk 0:00:02]}  Kg7 {[%clk 0:00:05]} 59. c5 {[%clk 0:00:02]}  a2 {[%clk 0:00:05]} 60. Bc4 {[%clk 0:00:00]}  a1=Q {[%clk 0:00:05]} 0-1


[Site "https://www.chess.com"]

[Event "Titled Tuesday Blitz June 20 Late 2023"]
[White "Ward, Ieuan C"]
[Black "Szyszylo, Rafal"]
[WhiteFideId "406627"]
[BlackFideId "1109626"]
[WhiteElo "2278"]
[BlackElo "1951"]
[Result "0-1"]
[Round "7"]
[TimeControl "180+2"]
[Date "2023.06.20"]
[WhiteClock "0:00:00"]
[BlackClock "0:00:02"]
[Board "108"]

1. d4 {[%clk 0:02:50]}  d6 {[%clk 0:03:00]} 2. c4 {[%clk 0:02:50]}  g6 {[%clk 0:02:57]} 3. Nc3 {[%clk 0:02:49]}  Nf6 {[%clk 0:02:56]} 4. Nf3 {[%clk 0:02:50]}  Bg7 {[%clk 0:02:56]} 5. g3 {[%clk 0:02:51]}  O-O {[%clk 0:02:56]} 6. Bg2 {[%clk 0:02:51]}  c6 {[%clk 0:02:57]} 7. O-O {[%clk 0:02:51]}  Qb6 {[%clk 0:02:57]} 8. Qc2 {[%clk 0:02:44]}  Bg4 {[%clk 0:02:51]} 9. Rd1 {[%clk 0:02:38]}  Nfd7 {[%clk 0:02:30]} 10. Be3 {[%clk 0:02:33]}  Qa5 {[%clk 0:02:25]} 11. h3 {[%clk 0:02:33]}  Bxf3 {[%clk 0:02:25]} 12. Bxf3 {[%clk 0:02:33]}  Na6 {[%clk 0:02:24]} 13. a3 {[%clk 0:02:32]}  e5 {[%clk 0:02:21]} 14. b4 {[%clk 0:02:19]}  Qc7 {[%clk 0:02:19]} 15. d5 {[%clk 0:02:15]}  c5 {[%clk 0:02:02]} 16. Nb5 {[%clk 0:02:09]}  Qb8 {[%clk 0:02:01]} 17. Rab1 {[%clk 0:02:06]}  f5 {[%clk 0:01:54]} 18. Qd2 {[%clk 0:01:57]}  b6 {[%clk 0:01:49]} 19. Bg5 {[%clk 0:01:50]}  Rf7 {[%clk 0:01:46]} 20. e4 {[%clk 0:01:41]}  Nf6 {[%clk 0:01:28]} 21. exf5 {[%clk 0:01:36]}  gxf5 {[%clk 0:01:29]} 22. Qe2 {[%clk 0:01:19]}  Qf8 {[%clk 0:01:20]} 23. Qc2 {[%clk 0:00:58]}  e4 {[%clk 0:01:14]} 24. Be2 {[%clk 0:00:53]}  h6 {[%clk 0:01:07]} 25. Bf4 {[%clk 0:00:50]}  Rd8 {[%clk 0:01:03]} 26. Qa4 {[%clk 0:00:48]}  Nc7 {[%clk 0:00:53]} 27. bxc5 {[%clk 0:00:37]}  Nxb5 {[%clk 0:00:50]} 28. Qxb5 {[%clk 0:00:33]}  bxc5 {[%clk 0:00:48]} 29. Qc6 {[%clk 0:00:30]}  Qe7 {[%clk 0:00:31]} 30. Rb3 {[%clk 0:00:28]}  Bf8 {[%clk 0:00:18]} 31. Rdb1 {[%clk 0:00:28]}  Qd7 {[%clk 0:00:14]} 32. Rb7 {[%clk 0:00:24]}  Qe8 {[%clk 0:00:13]} 33. Qa6 {[%clk 0:00:13]}  Rxb7 {[%clk 0:00:11]} 34. Rxb7 {[%clk 0:00:12]}  Rd7 {[%clk 0:00:08]} 35. Qxa7 {[%clk 0:00:10]}  Rxb7 {[%clk 0:00:08]} 36. Qxb7 {[%clk 0:00:11]}  Qa4 {[%clk 0:00:07]} 37. Qb8 {[%clk 0:00:08]}  Qxa3 {[%clk 0:00:06]} 38. Bxd6 {[%clk 0:00:08]}  Qc1+ {[%clk 0:00:02]} 39. Kg2 {[%clk 0:00:07]}  Nh7 {[%clk 0:00:03]} 40. Bxf8 {[%clk 0:00:05]}  Nxf8 {[%clk 0:00:02]} 41. Qf4 {[%clk 0:00:04]}  Qc3 {[%clk 0:00:02]} 42. Qxf5 {[%clk 0:00:00]}  Qd4 {[%clk 0:00:02]} 0-1


[Site "https://www.chess.com"]